bitfinex-derivatives/quotes_SOLF0:USTF0_20241008
["timestamp","ask_amount","ask_price","bid_price","bid_amount"]
[1728398083703,48.2,143.2,143.1,7.24]
[1728398083911,3.4935,143.17,143.13,3.4945]
[1728398084104,7.24,143.19,143.13,3.4945]
[1728398084304,7.24,143.19,143.09,7.36502]
[1728398084503,3.494,143.15,143.12,3.4946]
[1728398085007,7.24,143.19,143.09,0.12502]
[1728398085208,48.2,143.15,143.09,3.62042]
[1728398085403,48.2,143.15,143.09,0.12502]
[1728398085715,3.4941,143.15,143.12,3.4946]
[1728398086214,3.4947,143.13,143.09,0.12502]
[1728398086412,6.4947,143.13,143.09,0.12502]
[1728398086911,3.0,143.13,143.09,0.12502]
[1728398087401,3.0,143.13,143.1,3.4951]
[1728398087806,6.4945,143.13,143.1,3.4951]
[1728398088310,3.0,143.13,143.1,3.4951]
[1728398088710,3.0,143.13,143.09,3.62042]
[1728398088907,3.0,143.13,143.09,0.12502]
[1728398089705,3.4948,143.12,143.09,0.12502]
[1728398090704,3.0,143.13,143.09,0.12502]
[1728398091010,6.4946,143.13,143.1,3.4952]
[1728398091213,6.4946,143.13,143.09,0.12502]
[1728398091419,3.4948,143.12,143.09,3.62042]
[1728398091605,3.0,143.13,143.09,3.62042]
[1728398092115,3.4948,143.12,143.09,3.62042]
[1728398092315,3.0,143.13,143.09,3.62042]
[1728398092615,3.0,143.13,143.09,0.12502]
[1728398093917,6.4946,143.13,143.09,0.12502]
[1728398094112,6.4946,143.13,143.09,3.62042]
[1728398094513,3.0,143.13,143.09,0.12502]
[1728398095317,3.0,143.13,143.12,3.4947]
[1728398096016,3.0,143.16,143.15,3.494]
[1728398096214,3.0,143.16,143.15,10.734]
[1728398096818,0.12502,143.21,143.18,3.4931]
[1728398097322,0.12502,143.21,143.15,7.24]
[1728398097618,0.12502,143.21,143.13,2.8608]
[1728398097810,3.493,143.2,143.15,3.4938]
[1728398098117,0.12502,143.21,143.14,7.24]
[1728398098313,3.4928,143.2,143.15,3.4939]
[1728398098510,0.12502,143.21,143.14,7.24]
[1728398098917,3.61772,143.21,143.16,3.4937]
[1728398099422,0.12502,143.21,143.17,3.4933]
[1728398099621,0.12502,143.21,143.16,6.98]
[1728398100719,0.12502,143.21,143.17,3.4934]
[1728398100918,0.12502,143.21,143.16,6.98]
[1728398101517,0.12502,143.21,143.16,36.49]
[1728398101822,0.12502,143.21,143.13,2.8608]
[1728398102125,0.12502,143.21,143.14,6.98]
[1728398102518,0.12502,143.21,143.2,3.4928]
[1728398102823,0.12502,143.27,143.23,29.51]
[1728398103120,0.12502,143.27,143.24,6.98]
[1728398103618,0.12502,143.27,143.26,3.4913]
[1728398104125,0.12502,143.27,143.24,6.98]
[1728398104630,0.12502,143.27,143.24,10.4717]
[1728398104818,0.12502,143.27,143.24,6.98]
[1728398105220,0.12502,143.27,143.26,3.4913]
[1728398105425,1.48122,143.33,143.25,29.51]
[1728398106131,0.12502,143.33,143.25,29.51]
[1728398106325,0.12502,143.33,143.3,3.4902]
[1728398106525,0.12502,143.33,143.28,6.98]
[1728398106929,0.12502,143.33,143.3,3.4903]
[1728398107435,0.12502,143.33,143.28,3.4908]
[1728398107633,0.12502,143.33,143.26,6.98]
[1728398108424,0.12502,143.33,143.29,3.4906]
[1728398108638,0.12502,143.33,143.26,6.98]
[1728398109028,0.12502,143.33,143.27,29.51]
[1728398109732,0.12502,143.33,143.26,6.98]
[1728398109733,0.12502,143.33,143.32,3.4899]
[1728398109932,0.12502,143.39,143.32,3.4899]
[1728398109933,0.12502,143.39,143.32,6.98]
[1728398110132,0.12502,143.39,143.34,29.51]
[1728398110330,0.12502,143.39,143.32,36.49]
[1728398110741,0.12502,143.39,143.31,1.2397]
[1728398110742,0.12502,143.39,143.33,6.98]
[1728398110944,0.12502,143.39,143.33,6.96]
[1728398111534,0.12502,143.39,143.35,3.489]
[1728398111736,0.12502,143.39,143.33,6.96]
[1728398112040,0.12502,143.39,143.35,3.4891]
[1728398112246,0.12502,143.39,143.33,6.96]
[1728398112541,0.12502,143.39,143.37,3.4886]
[1728398112948,0.12502,143.39,143.33,6.96]
[1728398113149,0.12502,143.39,143.37,3.4884]
[1728398113343,0.12502,143.39,143.33,6.96]
[1728398113752,0.12502,143.39,143.38,3.4884]
[1728398115049,0.12502,143.39,143.3,1.4052]
[1728398115358,0.12502,143.39,143.31,8.3829]
[1728398115857,0.12502,143.39,143.31,11.8729]
[1728398116149,3.4891,143.36,143.31,8.3829]
[1728398116451,3.4891,143.36,143.3,1.4052]
[1728398116452,29.51,143.38,143.29,6.96]
[1728398116646,3.4891,143.36,143.29,6.96]
[1728398116844,29.51,143.38,143.3,3.4902]
[1728398116845,36.47,143.38,143.3,3.4902]
[1728398117353,36.47,143.38,143.28,6.96]
[1728398117653,0.12502,143.39,143.28,39.89038267]
[1728398117848,3.61322,143.39,143.3,29.51]
[1728398118050,0.12502,143.39,143.38,3.4884]
[1728398120645,0.12502,143.39,143.37,6.96]
[1728398120850,0.12502,143.39,143.38,3.4884]
[1728398121449,0.12502,143.39,143.35,29.51]
[1728398121659,0.12502,143.39,143.35,6.96]
[1728398121956,0.12502,143.39,143.34,6.96]
[1728398122256,29.51,143.37,143.25,29.51]
[1728398122455,1.4394,143.36,143.27,7.08502]
[1728398122651,3.4896,143.34,143.29,3.4904]
[1728398122951,1.4394,143.36,143.27,7.08502]
[1728398123157,0.12502,143.39,143.3,29.51]
[1728398123360,0.12502,143.39,143.32,29.51]
[1728398123860,0.12502,143.39,143.33,2.846]
[1728398124363,0.12502,143.39,143.35,3.4889]
[1728398124558,0.12502,143.39,143.33,2.846]
[1728398124749,0.12502,143.39,143.33,1.4391]
[1728398124950,3.4888,143.37,143.31,6.96]
[1728398125451,0.12502,143.39,143.31,6.96]
[1728398126046,3.4888,143.37,143.31,6.96]
[1728398126248,0.12502,143.39,143.31,6.96]
[1728398126562,3.61342,143.39,143.31,6.96]
[1728398126766,0.12502,143.39,143.31,6.96]
[1728398127057,0.12502,143.39,143.38,3.4884]
[1728398127254,3.61332,143.39,143.31,6.96]
[1728398127457,0.12502,143.39,143.31,6.96]
[1728398127648,3.61332,143.39,143.31,6.96]
[1728398128162,3.61332,143.39,143.34,3.4894]
[1728398128364,3.4884,143.38,143.34,3.4894]
[1728398128659,0.12502,143.39,143.32,3.4897]
[1728398128859,0.12502,143.39,143.33,6.96]
[1728398129160,29.51,143.38,143.29,10.6305]
[1728398129361,1.4097,143.37,143.29,7.14]
[1728398129766,1.4097,143.37,143.29,10.6305]
[1728398130261,29.51,143.36,143.29,10.6306]
[1728398130568,29.51,143.36,143.29,7.14]
[1728398130758,29.51,143.33,143.29,7.14]
[1728398130961,1.3933,143.32,143.29,7.14]
[1728398131852,4.8833,143.32,143.29,10.6305]
[1728398132365,1.3933,143.32,143.29,7.14]
[1728398132566,3.4904,143.3,143.29,7.14]
[1728398133663,1.3933,143.32,143.29,7.14]
[1728398134761,1.3584,143.35,143.29,7.14]
[1728398134962,3.4896,143.34,143.29,7.14]
[1728398135162,30.8684,143.35,143.29,7.14]
[1728398136263,3.4904,143.3,143.29,7.14]
[1728398136464,7.14,143.33,143.27,0.12502]
[1728398136671,3.4908,143.28,143.27,0.12502]
[1728398137172,3.4917,143.25,143.22,4.9131]
[1728398137670,3.4917,143.25,143.22,3.4922]
[1728398137970,8.5717,143.29,143.21,0.12502]
[1728398138863,344.14,143.32,143.27,3.491]
[1728398139071,7.14,143.32,143.23,7.14]
[1728398139567,10.65889146,143.32,143.23,7.14]
[1728398139870,3.492,143.24,143.21,10.75742]
[1728398140064,29.51,143.3,143.21,7.26502]
[1728398140270,1.0,143.31,143.21,7.26502]
[1728398140672,1.0,143.31,143.22,29.51]
[1728398140872,7.14,143.32,143.22,29.51]
[1728398141374,3.4906,143.29,143.26,3.4911]
[1728398141574,7.14,143.32,143.22,29.51]
[1728398142069,29.51,143.31,143.21,7.26502]
[1728398142458,3.4907,143.29,143.21,7.26502]
[1728398142770,7.14,143.32,143.22,29.51]
[1728398142969,10.61828734,143.32,143.22,29.51]
[1728398143468,0.12502,143.33,143.24,29.51]
[1728398143658,7.26502,143.33,143.24,29.51]
[1728398144572,36.77502,143.33,143.21,36.77502]
[1728398145374,3.4909,143.28,143.25,3.4914]
[1728398145979,29.51,143.31,143.21,0.12502]
[1728398146576,3.4911,143.27,143.24,3.4917]
[1728398146967,33.01632135,143.31,143.21,0.12502]
[1728398147170,3.4912,143.27,143.23,3.4919]
[1728398147376,3.4912,143.27,143.21,0.12502]
[1728398147679,29.63502,143.33,143.21,29.63502]
[1728398147878,29.63502,143.33,143.23,29.51]
[1728398148070,7.26502,143.33,143.23,29.51]
[1728398148377,3.4903,143.31,143.27,3.4909]
[1728398148576,7.26502,143.33,143.24,7.14]
[1728398149078,3.4905,143.3,143.27,3.4911]
[1728398149280,7.26502,143.33,143.27,3.4911]
[1728398149476,0.12502,143.33,143.28,7.14]
[1728398149879,0.12502,143.33,143.27,1.3132]
[1728398150080,3.4904,143.3,143.27,3.491]
[1728398150268,0.12502,143.33,143.25,1.3828]
[1728398151178,3.61482,143.33,143.29,3.4905]
[1728398151380,0.12502,143.33,143.29,3.4905]
[1728398151574,0.12502,143.33,143.25,1.3828]
[1728398151770,0.12502,143.33,143.26,29.51]
[1728398151980,0.12502,143.33,143.25,1.3828]
[1728398152375,3.4902,143.31,143.28,3.4907]
[1728398152576,0.12502,143.33,143.25,1.3828]
[1728398153184,3.4902,143.31,143.28,3.4908]
[1728398153785,3.49,143.32,143.29,3.4905]
[1728398154181,32.97161039,143.32,143.22,1.3132]
[1728398154376,30.9084,143.32,143.23,7.14]
[1728398154582,1.3984,143.32,143.23,7.14]
[1728398154781,4.8884,143.32,143.29,3.4905]
[1728398154988,1.3984,143.32,143.24,29.51]
[1728398155191,0.12502,143.33,143.24,29.51]
[1728398155381,0.12502,143.33,143.24,30.8761]
[1728398155991,3.4902,143.31,143.28,3.4908]
[1728398156787,3.4904,143.3,143.27,3.4909]
[1728398156991,0.12502,143.33,143.25,7.14]
[1728398157183,29.51,143.32,143.24,7.14]
[1728398157489,3.4909,143.28,143.25,3.4914]
[1728398157690,29.51,143.3,143.22,1.3132]
[1728398157888,29.51,143.3,143.22,8.4532]
[1728398158077,3.491,143.28,143.25,3.4916]
[1728398158394,3.491,143.28,143.22,8.4532]
[1728398158588,3.491,143.28,143.23,3.4919]
[1728398158800,3.491,143.28,143.22,8.4532]
[1728398159088,3.4911,143.27,143.22,8.4532]
[1728398159493,30.8522,143.3,143.22,8.4532]
[1728398159690,3.4912,143.27,143.23,3.4919]
[1728398159994,29.49,143.27,143.21,0.12502]
[1728398160179,3.4921,143.23,143.21,0.12502]
[1728398160489,29.49,143.27,143.21,0.12502]
[1728398161385,6.94,143.28,143.21,0.12502]
[1728398161781,1.3622,143.3,143.22,6.94]
[1728398162486,343.94,143.31,143.22,6.94]
[1728398162894,29.49,143.32,143.22,6.94]
[1728398163095,2.7306,143.35,143.26,29.49]
[1728398163296,2.7306,143.35,143.27,6.94]
[1728398163505,3.49,143.32,143.28,3.4906]
[1728398163692,2.7306,143.35,143.27,6.94]
[1728398164004,2.7306,143.35,143.27,9.749]
[1728398164596,29.61502,143.39,143.28,29.49]
[1728398164798,36.55502,143.39,143.28,29.49]
[1728398165189,29.49,143.37,143.28,6.94]
[1728398165687,29.49,143.37,143.29,3.4905]
[1728398166085,3.61472,143.33,143.29,3.4905]
[1728398166289,0.12502,143.33,143.27,9.749]
[1728398167090,0.12502,143.33,143.29,3.4904]
[1728398167287,0.12502,143.33,143.27,9.749]
[1728398167484,0.12502,143.33,143.29,3.4904]
[1728398168090,3.49,143.32,143.29,3.4904]
[1728398168396,3.49,143.32,143.27,9.749]
[1728398168590,0.12502,143.33,143.3,3.4904]
[1728398168991,0.12502,143.33,143.27,9.749]
[1728398169189,3.61472,143.33,143.27,9.749]
[1728398169586,0.12502,143.33,143.27,9.749]
[1728398170193,0.12502,143.33,143.32,3.4899]
[1728398170492,0.12502,143.33,143.28,29.49]
[1728398170493,0.12502,143.39,143.31,6.94]
[1728398170698,0.12502,143.39,143.36,3.4888]
[1728398170902,3.61332,143.39,143.31,6.94]
[1728398171092,0.12502,143.39,143.33,3.4895]
[1728398171294,29.61502,143.39,143.31,6.94]
[1728398171603,3.4891,143.36,143.31,6.94]
[1728398172006,29.61502,143.39,143.31,6.94]
[1728398172300,29.61502,143.39,143.3,6.94]
[1728398172498,29.61502,143.39,143.3,10.4302]
[1728398172705,3.4895,143.34,143.3,10.4302]
[1728398173295,29.61502,143.39,143.3,10.4302]
[1728398173296,36.43,143.37,143.3,3.4902]
[1728398173496,29.49,143.35,143.26,6.94]
[1728398173894,3.4898,143.33,143.29,3.4904]
[1728398174191,29.49,143.35,143.27,0.12502]
[1728398174394,2.6917,143.34,143.27,0.12502]
[1728398174604,29.49,143.32,143.27,0.12502]
[1728398174794,33.05701535,143.32,143.27,0.12502]
[1728398174995,3.4905,143.3,143.27,3.61602]
[1728398175300,37.8432,143.33,143.27,0.12502]
[1728398175496,11.8429,143.33,143.3,3.4904]
[1728398175700,8.3532,143.33,143.27,0.12502]
[1728398176206,3.4901,143.32,143.27,0.12502]
[1728398176901,3.4901,143.32,143.28,3.4907]
[1728398177102,3.4901,143.31,143.28,3.4907]
[1728398177605,8.3532,143.33,143.28,3.4907]
[1728398177810,3.49,143.32,143.29,3.4906]
[1728398178102,8.3532,143.33,143.27,0.12502]
[1728398178304,3.4901,143.31,143.28,3.4907]
[1728398178699,8.3532,143.33,143.28,3.4907]
[1728398179107,3.49,143.32,143.28,3.4907]
[1728398180195,3.4902,143.31,143.28,3.4907]
[1728398180704,343.94,143.38,143.32,3.4897]
[1728398180905,3.489,143.36,143.27,0.12502]
[1728398181107,8.3145,143.38,143.28,29.49]
[1728398181309,1.51682,143.39,143.35,3.489]
[1728398181700,5.00512,143.39,143.31,8.3866]
[1728398181899,3.61332,143.39,143.35,3.489]
[1728398182099,0.12502,143.39,143.31,8.3866]
[1728398182296,0.12502,143.39,143.35,3.4891]
[1728398183102,3.4885,143.38,143.35,3.4891]
[1728398183901,29.49,143.37,143.29,1.3926]
[1728398184097,29.49,143.37,143.29,8.3326]
[1728398184301,29.49,143.35,143.27,1.45552]
[1728398184502,3.4903,143.31,143.28,3.4908]
[1728398184804,6.94,143.34,143.27,0.12502]
[1728398185001,3.4902,143.31,143.28,3.4908]
[1728398185405,36.43,143.3,143.27,0.12502]
[1728398185604,3.4908,143.28,143.27,0.12502]
[1728398185810,36.43,143.3,143.27,0.12502]
[1728398186006,3.4906,143.29,143.27,0.12502]
[1728398186200,1.4498,143.32,143.27,0.12502]
[1728398186403,8.3509,143.33,143.27,0.12502]
[1728398186610,1.4109,143.33,143.31,3.49]
[1728398186804,8.2885,143.36,143.27,29.61502]
[1728398187004,8.2885,143.36,143.27,31.02662]
[1728398187318,6.94,143.36,143.27,31.02662]
[1728398187506,6.94,143.36,143.27,32.39342]
[1728398187709,6.94,143.36,143.29,3.4904]
[1728398187903,3.4889,143.37,143.3,6.94]
[1728398188106,1.3583,143.38,143.3,6.94]
[1728398188412,3.489,143.36,143.31,3.4899]
[1728398188610,3.489,143.36,143.3,6.94]
[1728398188814,3.489,143.36,143.32,3.4896]
[1728398189418,1.3583,143.38,143.3,6.94]
[1728398190411,1.3583,143.38,143.3,36.43]
[1728398190614,1.3583,143.38,143.35,3.4889]
[1728398190908,0.12502,143.39,143.31,1.4406]
[1728398191114,0.12502,143.39,143.36,3.4888]
[1728398191818,0.12502,143.39,143.34,6.72]
[1728398192413,0.12502,143.39,143.38,3.4884]
[1728398194410,0.12502,143.39,143.32,29.49]
[1728398194719,29.61502,143.39,143.33,6.72]
[1728398194918,29.61502,143.39,143.33,3.4895]
[1728398195116,29.61502,143.39,143.33,10.2095]
[1728398195318,3.4888,143.37,143.33,6.72]
[1728398195722,29.61502,143.39,143.33,6.72]
[1728398196121,29.61502,143.39,143.34,3.4892]
[1728398196325,3.4887,143.37,143.34,3.4892]
[1728398196623,29.61502,143.39,143.34,3.4892]
[1728398196921,3.4895,143.34,143.31,3.49]
[1728398197216,29.61502,143.39,143.3,6.72]
[1728398197417,1.4217,143.38,143.3,6.72]
[1728398197825,3.489,143.36,143.34,3.4894]
[1728398198124,0.12502,143.39,143.34,6.72]
[1728398198426,3.61342,143.39,143.36,3.4887]
[1728398198623,3.61342,143.39,143.34,6.72]
[1728398198920,3.61342,143.39,143.36,3.4887]
[1728398199419,0.12502,143.39,143.34,6.72]
[1728398199627,3.4887,143.37,143.35,3.4891]
[1728398199924,0.12502,143.39,143.34,6.72]
[1728398200120,0.12502,143.39,143.37,3.4886]
[1728398200426,0.12502,143.39,143.34,6.72]
[1728398200615,3.61332,143.39,143.36,3.4887]
[1728398200815,3.61332,143.39,143.34,6.72]
[1728398201020,0.12502,143.39,143.34,6.72]
[1728398201325,0.12502,143.39,143.38,3.4884]
[1728398205418,0.12502,143.39,143.37,3.4885]
[1728398205619,0.12502,143.39,143.36,6.72]
[1728398206022,0.12502,143.39,143.38,3.4884]
[1728398206523,0.12502,143.39,143.36,6.72]
[1728398207227,0.12502,143.39,143.37,3.4885]
[1728398207428,0.12502,143.39,143.36,6.72]
[1728398207728,0.12502,143.39,143.37,3.4887]
[1728398207923,3.61332,143.39,143.35,6.72]
[1728398208130,3.61332,143.39,143.36,3.4887]
[1728398208329,3.61332,143.39,143.35,6.72]
[1728398208729,3.4885,143.38,143.35,10.209]
[1728398209028,0.12502,143.39,143.3,2.7395]
[1728398209530,1.46182,143.39,143.31,6.72]
[1728398209837,3.4893,143.35,143.32,3.4897]
[1728398210221,1.46182,143.39,143.31,6.72]
[1728398210424,0.12502,143.39,143.31,36.21]
[1728398211825,0.12502,143.39,143.34,29.49]
[1728398212040,0.12502,143.39,143.35,6.72]
[1728398212533,0.12502,143.39,143.36,3.4888]
[1728398212731,0.12502,143.39,143.35,6.72]
[1728398213733,0.12502,143.39,143.38,3.4884]
[1728398222938,0.12502,143.39,143.37,10.2085]
[1728398223746,0.12502,143.39,143.38,3.4884]
[1728398225645,0.12518,143.4,143.39,3.4882]
[1728398226253,0.12518,143.4,143.38,3.4883]
[1728398226548,0.12518,143.4,143.33,0.12502]
[1728398228743,0.12518,143.4,143.39,3.4882]
[1728398231435,0.12518,143.4,143.34,1.4442]
[1728398231647,3.4884,143.39,143.34,6.42]
[1728398231854,0.12518,143.4,143.33,0.12502]
[1728398232036,0.12518,143.4,143.33,6.54502]
[1728398232349,33.05216364,143.4,143.34,3.4893]
[1728398232653,1.4305,143.39,143.34,3.4893]
[1728398232835,1.4305,143.39,143.33,3.61452]
[1728398233042,1.4305,143.39,143.33,0.12502]
[1728398233236,29.49,143.37,143.33,0.12502]
[1728398233445,3.4889,143.36,143.33,0.12502]
[1728398233647,7.83246064,143.39,143.33,0.12502]
[1728398234042,3.4888,143.37,143.34,3.4893]
[1728398234557,7.83246064,143.39,143.33,0.12502]
[1728398235742,3.4891,143.36,143.33,3.61452]
[1728398236145,7.83246064,143.39,143.33,0.12502]
[1728398236444,29.49,143.35,143.27,0.12502]
[1728398236646,29.49,143.32,143.27,0.12502]
[1728398236846,3.4905,143.3,143.27,3.61592]
[1728398237041,29.49,143.32,143.27,0.12502]
[1728398237448,3.4908,143.28,143.27,0.12502]
[1728398237748,1.3293,143.31,143.27,0.12502]
[1728398237945,1.3745,143.32,143.27,0.12502]
[1728398238558,3.45830959,143.31,143.27,0.12502]
[1728398238953,3.4908,143.28,143.27,0.12502]
[1728398239344,6.42,143.29,143.24,3.4918]
[1728398239654,3.4909,143.28,143.25,3.4916]
[1728398240158,9.93445435,143.29,143.21,9.21382]
[1728398240353,3.4912,143.27,143.24,3.4917]
[1728398240661,3.4912,143.27,143.21,9.21382]
[1728398240662,3.4912,143.27,143.21,2.79382]
[1728398240848,9.9107,143.29,143.27,3.4911]
[1728398241048,13.48659098,143.29,143.21,2.79382]
[1728398241350,30.8193,143.31,143.27,3.4909]
[1728398241351,9.9104,143.3,143.27,3.4909]
[1728398241759,13.33095405,143.3,143.27,3.4909]
[1728398241955,3.4904,143.3,143.27,3.4909]
[1728398242459,3.4906,143.29,143.27,3.4909]
[1728398243048,3.4906,143.29,143.21,9.21382]
[1728398243253,3.4909,143.28,143.21,9.21382]
[1728398243653,11.17951839,143.31,143.26,3.4913]
[1728398243859,3.4907,143.29,143.26,3.4913]
[1728398245452,4.75951839,143.31,143.21,9.21382]
[1728398245651,2.8142,143.32,143.23,29.49]
[1728398245954,2.8142,143.32,143.21,38.70382]
[1728398246155,3.491,143.28,143.25,3.4914]
[1728398246545,3.43125957,143.3,143.21,9.21382]
[1728398246751,3.4911,143.27,143.21,9.21382]
[1728398247062,6.42,143.29,143.21,9.21382]
[1728398247461,3.4909,143.28,143.25,3.4914]
[1728398247757,6.42,143.29,143.21,9.21382]
[1728398247960,6.42,143.29,143.26,3.4911]
[1728398248146,6.42,143.29,143.21,9.21382]
[1728398249055,9.9108,143.29,143.25,3.4914]
[1728398249654,9.9108,143.29,143.26,3.4913]
[1728398249863,9.9108,143.29,143.21,9.21382]
[1728398250564,35.91,143.29,143.21,0.12502]
[1728398250865,29.49,143.27,143.21,0.12502]
[1728398251068,3.4921,143.23,143.21,0.12502]
[1728398251571,337.0,143.3,143.21,0.12502]
[1728398251572,3.4923,143.22,143.21,0.12502]
[1728398251873,29.49,143.22,143.15,0.12502]
[1728398252052,1.3349,143.24,143.15,0.12502]
[1728398252362,7.6349,143.24,143.15,29.61502]
[1728398252559,7.6349,143.24,143.16,18.44]
[1728398252761,3.4922,143.23,143.19,3.4929]
[1728398253056,18.44,143.23,143.15,0.12502]
[1728398253364,18.44,143.23,143.15,18.56502]
[1728398253564,18.44,143.23,143.15,0.12502]
[1728398254258,18.44,143.21,143.15,0.12502]
[1728398254462,29.53,143.21,143.15,0.12502]
[1728398254665,3.4186155,143.22,143.15,0.12502]
[1728398254961,29.53,143.23,143.15,0.12502]
[1728398255164,33.02944314,143.23,143.15,0.12502]
[1728398256058,3.4932,143.19,143.15,3.61892]
[1728398256261,33.02944314,143.23,143.15,0.12502]
[1728398256262,35.83,143.2,143.15,0.12502]
[1728398256457,29.53,143.18,143.15,0.12502]
[1728398256671,29.53,143.16,143.1,3.4951]
[1728398256854,1.437,143.17,143.09,0.12502]
[1728398257076,1.3949,143.19,143.09,29.65502]
[1728398257264,6.3,143.19,143.09,29.65502]
[1728398257572,6.3,143.19,143.09,0.12502]
[1728398257573,35.83,143.19,143.09,0.12502]
[1728398257859,3.4936,143.17,143.11,3.4948]
[1728398258060,35.83,143.19,143.09,0.12502]
[1728398258259,35.83,143.19,143.09,6.42502]
[1728398258463,29.53,143.16,143.09,6.42502]
[1728398258659,29.53,143.16,143.09,0.12502]
[1728398259464,1.0,143.18,143.09,0.12502]
[1728398260057,7.3,143.18,143.09,0.12502]
[1728398260263,343.3,143.2,143.1,6.3]
[1728398260566,3.4935,143.17,143.12,3.4946]
[1728398260765,343.3,143.2,143.1,6.3]
[1728398261368,3.4932,143.19,143.11,29.53]
[1728398261770,3.4932,143.19,143.13,3.4944]
[1728398262068,3.4932,143.19,143.11,29.53]
[1728398262461,3.4932,143.19,143.14,3.4941]
[1728398263071,3.4932,143.19,143.15,3.494]
[1728398263571,6.3,143.2,143.11,29.53]
[1728398263762,3.4934,143.18,143.13,3.4944]
[1728398264366,9.7929,143.2,143.15,3.4938]
[1728398264675,1.49022,143.21,143.14,6.3]
[1728398264877,1.49022,143.21,143.15,1.3215]
[1728398264878,0.12502,143.21,143.15,1.3215]
[1728398265064,0.12502,143.21,143.15,2.6707]
[1728398265371,0.12502,143.21,143.15,32.2007]
[1728398265572,0.12502,143.21,143.19,3.493]
[1728398265872,0.12502,143.21,143.18,6.3]
[1728398266168,0.12502,143.21,143.2,3.4928]
[1728398267770,0.12502,143.27,143.24,3.4917]
[1728398267971,0.12502,143.27,143.18,35.83]
[1728398268369,3.61622,143.27,143.22,3.4921]
[1728398268570,0.12502,143.27,143.18,6.3]
[1728398268970,3.4918,143.24,143.2,3.4927]
[1728398269164,0.12502,143.27,143.18,6.3]
[1728398269165,29.53,143.26,143.18,6.3]
[1728398269479,3.4922,143.23,143.19,3.4928]
[1728398269672,1.3866,143.25,143.18,6.3]
[1728398269979,1.3866,143.25,143.16,1.418]
[1728398270183,3.4922,143.23,143.19,3.4929]
[1728398270379,1.3866,143.25,143.17,6.3]
[1728398270773,3.4918,143.24,143.19,3.4928]
[1728398271678,1.3866,143.25,143.17,6.3]
[1728398271978,3.4922,143.23,143.16,1.418]
[1728398272169,3.4922,143.23,143.17,6.3]
[1728398272373,1.3866,143.25,143.17,6.3]
[1728398273971,29.53,143.24,143.15,2.79572]
[1728398274167,3.4925,143.22,143.16,6.3]
[1728398274673,30.9767,143.24,143.16,6.3]
[1728398274881,3.4922,143.23,143.16,6.3]
[1728398275082,1.3866,143.25,143.21,3.4925]
[1728398275380,3.4918,143.24,143.16,6.3]
[1728398276083,3.4918,143.24,143.2,3.4926]
[1728398276578,1.3866,143.25,143.17,6.3]
[1728398277372,3.4919,143.24,143.2,3.4927]
[1728398277674,29.53,143.24,143.17,6.3]
[1728398278182,3.4923,143.22,143.18,3.4932]
[1728398278473,3.4923,143.22,143.17,6.3]